[Event "*** Titled Tuesday Blitz"]
[Site "Chess.com"]
[Date "2020.05.19"]
[Round "9"]
[White "szachuspl"]
[Black "czasnaszachy"]
[Result "1-0"]
[WhiteElo "2537"]
[BlackElo "2374"]
[TimeControl "180+1"]
[EndTime "13:45:59 PDT"]
[Termination "szachuspl won on time"]

1. d4 {[%clk 0:03:00.9]} 1... Nf6 {[%clk 0:02:58.3]} 2. c4 {[%clk 0:03:00.7]}
2... e6 {[%clk 0:02:55.2]} 3. Nf3 {[%clk 0:03:00.2]} 3... b6 {[%clk 0:02:52.2]}
4. g3 {[%clk 0:02:59.7]} 4... Ba6 {[%clk 0:02:51.9]} 5. Qc2 {[%clk 0:02:59.6]}
5... c5 {[%clk 0:02:49.2]} 6. dxc5 {[%clk 0:02:59]} 6... bxc5 {[%clk 0:02:48.5]}
7. Bg2 {[%clk 0:02:59]} 7... Bb7 {[%clk 0:02:48.6]} 8. Nc3 {[%clk 0:02:58.6]}
8... Be7 {[%clk 0:02:45.7]} 9. O-O {[%clk 0:02:58.2]} 9... d6 {[%clk 0:02:45.7]}
10. Rd1 {[%clk 0:02:57.5]} 10... Nbd7 {[%clk 0:02:45.1]} 11. Bf4 {[%clk
0:02:56.8]} 11... Qb6 {[%clk 0:02:42.9]} 12. Rd2 {[%clk 0:02:45.8]} 12... O-O
{[%clk 0:02:40.5]} 13. Rad1 {[%clk 0:02:45.3]} 13... e5 {[%clk 0:02:36.5]} 14.
Bg5 {[%clk 0:02:45.5]} 14... h6 {[%clk 0:02:31.9]} 15. Bxf6 {[%clk 0:02:45.6]}
15... Nxf6 {[%clk 0:02:31.9]} 16. Nh4 {[%clk 0:02:45.2]} 16... Rfd8 {[%clk
0:02:12.7]} 17. Bxb7 {[%clk 0:02:43.5]} 17... Qxb7 {[%clk 0:02:12.1]} 18. Nf5
{[%clk 0:02:44.2]} 18... Bf8 {[%clk 0:02:11.9]} 19. Ne3 {[%clk 0:02:43.4]} 19...
Rdb8 {[%clk 0:01:52.3]} 20. b3 {[%clk 0:02:43]} 20... a5 {[%clk 0:01:52]} 21.
Nb5 {[%clk 0:02:40.3]} 21... a4 {[%clk 0:01:48.2]} 22. f3 {[%clk 0:02:36.6]}
22... axb3 {[%clk 0:01:47]} 23. axb3 {[%clk 0:02:36.4]} 23... Ne8 {[%clk
0:01:47.2]} 24. Nf5 {[%clk 0:02:24.7]} 24... Ra6 {[%clk 0:01:42.7]} 25. Rd3
{[%clk 0:02:23.2]} 25... Rba8 {[%clk 0:01:41.3]} 26. Nfxd6 {[%clk 0:02:12.6]}
26... Nxd6 {[%clk 0:01:08.5]} 27. Nxd6 {[%clk 0:02:12.4]} 27... Bxd6 {[%clk
0:01:01.9]} 28. Rxd6 {[%clk 0:02:12.3]} 28... Rxd6 {[%clk 0:00:56.7]} 29. Rxd6
{[%clk 0:02:11.8]} 29... Rb8 {[%clk 0:00:57.1]} 30. Rd3 {[%clk 0:02:07.3]} 30...
e4 {[%clk 0:00:55.5]} 31. fxe4 {[%clk 0:02:07.1]} 31... Re8 {[%clk 0:00:43.5]}
32. Rd5 {[%clk 0:02:06.4]} 32... f6 {[%clk 0:00:39.3]} 33. Kf2 {[%clk
0:02:04.8]} 33... Rb8 {[%clk 0:00:33.3]} 34. Qd3 {[%clk 0:01:59.2]} 34... Re8
{[%clk 0:00:14.8]} 35. Kf3 {[%clk 0:01:52.4]} 35... Qc8 {[%clk 0:00:13.1]} 36.
Rd7 {[%clk 0:01:48.4]} 36... Qb8 {[%clk 0:00:11.7]} 37. Qd5+ {[%clk 0:01:44.7]}
37... Kh8 {[%clk 0:00:11.6]} 38. Qf7 {[%clk 0:01:44.7]} 38... Rg8 {[%clk
0:00:11.7]} 39. Rb7 {[%clk 0:01:39.8]} 39... Qe5 {[%clk 0:00:11.4]} 40. Qd5
{[%clk 0:01:37.7]} 40... Qc3+ {[%clk 0:00:10.1]} 41. Qd3 {[%clk 0:01:37]} 41...
Qe5 {[%clk 0:00:10]} 42. Rd7 {[%clk 0:01:32.9]} 42... Re8 {[%clk 0:00:05.8]} 43.
Rd5 {[%clk 0:01:29.5]} 43... Qa1 {[%clk 0:00:05.6]} 44. Kg2 {[%clk 0:01:26.2]}
44... Qc1 {[%clk 0:00:01.7]} 45. Rxc5 {[%clk 0:01:24.3]} 1-0

[Event "*** Titled Tuesday Blitz"]
[Site "Chess.com"]
[Date "2020.05.19"]
[Round "9"]
[White "SamuelGhimpu2003"]
[Black "fighter2jz"]
[Result "0-1"]
[WhiteElo "2601"]
[BlackElo "2767"]
[TimeControl "180+1"]
[EndTime "13:46:00 PDT"]
[Termination "fighter2jz won by resignation"]

1. Nf3 {[%clk 0:03:00.9]} 1... a6 {[%clk 0:02:58.5]} 2. d4 {[%clk 0:02:54.7]}
2... h6 {[%clk 0:02:56.1]} 3. c4 {[%clk 0:02:52.8]} 3... g6 {[%clk 0:02:55.7]}
4. Nc3 {[%clk 0:02:52.5]} 4... Bg7 {[%clk 0:02:56]} 5. e4 {[%clk 0:02:51.4]}
5... b6 {[%clk 0:02:56.5]} 6. Bd3 {[%clk 0:02:50]} 6... Bb7 {[%clk 0:02:56.7]}
7. O-O {[%clk 0:02:49]} 7... d6 {[%clk 0:02:57.3]} 8. Re1 {[%clk 0:02:46.4]}
8... Nd7 {[%clk 0:02:57.2]} 9. e5 {[%clk 0:02:46.6]} 9... dxe5 {[%clk
0:02:55.6]} 10. Nxe5 {[%clk 0:02:45.4]} 10... Nxe5 {[%clk 0:02:52.9]} 11. dxe5
{[%clk 0:02:46.3]} 11... e6 {[%clk 0:02:50.7]} 12. Bf4 {[%clk 0:02:21.1]} 12...
Ne7 {[%clk 0:02:48.9]} 13. h4 {[%clk 0:02:12.9]} 13... Nf5 {[%clk 0:02:40.4]}
14. Bxf5 {[%clk 0:02:13.1]} 14... gxf5 {[%clk 0:02:37]} 15. Qh5 {[%clk
0:02:09.5]} 15... Qd4 {[%clk 0:02:32.9]} 16. Be3 {[%clk 0:01:48.5]} 16... Qxc4
{[%clk 0:02:27.4]} 17. Rac1 {[%clk 0:01:42.4]} 17... Rg8 {[%clk 0:02:12]} 18. f3
{[%clk 0:01:35.2]} 18... Bxe5 {[%clk 0:02:07.6]} 19. Bf2 {[%clk 0:01:31]} 19...
Qf4 {[%clk 0:02:05]} 20. Rxe5 {[%clk 0:01:13.1]} 20... Qxe5 {[%clk 0:01:44.9]}
21. Re1 {[%clk 0:01:13.1]} 21... Qf6 {[%clk 0:01:41.7]} 22. Be3 {[%clk
0:00:43.4]} 22... Qg6 {[%clk 0:01:27.6]} 23. Qxg6 {[%clk 0:00:42.7]} 23... Rxg6
{[%clk 0:01:28.5]} 24. Kf2 {[%clk 0:00:42.6]} 24... Rd8 {[%clk 0:01:25.7]} 25.
Bf4 {[%clk 0:00:42.2]} 25... Rd7 {[%clk 0:01:25.1]} 26. h5 {[%clk 0:00:41.4]}
26... Rg8 {[%clk 0:01:23.3]} 27. Re2 {[%clk 0:00:37.9]} 27... b5 {[%clk
0:01:16]} 28. a3 {[%clk 0:00:33.6]} 28... c5 {[%clk 0:01:13]} 29. Re5 {[%clk
0:00:20.4]} 29... Bd5 {[%clk 0:01:04.8]} 30. g3 {[%clk 0:00:16.1]} 30... f6
{[%clk 0:01:04.5]} 31. Re1 {[%clk 0:00:13.9]} 31... Kf7 {[%clk 0:01:04.3]} 32.
b4 {[%clk 0:00:12.6]} 32... cxb4 {[%clk 0:01:01.7]} 33. axb4 {[%clk 0:00:13.5]}
33... Rc8 {[%clk 0:01:01.1]} 34. Ne2 {[%clk 0:00:14.4]} 34... Rc2 {[%clk
0:00:59.8]} 35. Ke3 {[%clk 0:00:13.4]} 35... Bc4 {[%clk 0:00:58.9]} 36. Bxh6
{[%clk 0:00:11.7]} 0-1

[Event "*** Titled Tuesday Blitz"]
[Site "Chess.com"]
[Date "2020.05.19"]
[Round "9"]
[White "chessdjw"]
[Black "LADIESGET2KNOWME"]
[Result "1/2-1/2"]
[WhiteElo "2720"]
[BlackElo "2566"]
[TimeControl "180+1"]
[EndTime "13:46:01 PDT"]
[Termination "Game drawn by repetition"]

1. e4 {[%clk 0:03:00.9]} 1... e5 {[%clk 0:03:00]} 2. Nf3 {[%clk 0:03:01.4]} 2...
Nc6 {[%clk 0:03:00.3]} 3. Bb5 {[%clk 0:03:01.9]} 3... a6 {[%clk 0:03:00.4]} 4.
Ba4 {[%clk 0:03:02.6]} 4... Nf6 {[%clk 0:03:00.5]} 5. d3 {[%clk 0:03:03.3]} 5...
b5 {[%clk 0:03:01.3]} 6. Bb3 {[%clk 0:03:02.5]} 6... Bc5 {[%clk 0:03:02.2]} 7.
c3 {[%clk 0:03:02.7]} 7... d6 {[%clk 0:03:02.7]} 8. Bg5 {[%clk 0:03:03]} 8... h6
{[%clk 0:03:02.7]} 9. Bh4 {[%clk 0:03:03]} 9... O-O {[%clk 0:03:00.7]} 10. Nbd2
{[%clk 0:03:02.5]} 10... Be6 {[%clk 0:03:00.1]} 11. Nf1 {[%clk 0:02:56.3]} 11...
Re8 {[%clk 0:02:44.9]} 12. Ne3 {[%clk 0:02:54.4]} 12... g5 {[%clk 0:02:41.1]}
13. Nxg5 {[%clk 0:02:53.1]} 13... Nxe4 {[%clk 0:02:40.1]} 14. Nxe6 {[%clk
0:01:48]} 14... Qxh4 {[%clk 0:02:39.5]} 15. g3 {[%clk 0:01:48.5]} 15... Qf6
{[%clk 0:02:21.1]} 16. Qg4+ {[%clk 0:01:45.6]} 16... Ng5 {[%clk 0:01:28.2]} 17.
Nxc5 {[%clk 0:01:42.9]} 17... dxc5 {[%clk 0:01:19]} 18. h4 {[%clk 0:01:41.9]}
18... Qf3 {[%clk 0:01:19.3]} 19. hxg5 {[%clk 0:01:13.9]} 19... Qxh1+ {[%clk
0:01:18.6]} 20. Ke2 {[%clk 0:01:14.2]} 20... Qxa1 {[%clk 0:01:19.5]} 21. gxh6+
{[%clk 0:01:13.7]} 21... Kf8 {[%clk 0:01:19.2]} 22. Nf5 {[%clk 0:00:50.4]} 22...
Nd4+ {[%clk 0:01:03]} 23. cxd4 {[%clk 0:00:37.2]} 23... exd4+ {[%clk 0:01:03.9]}
24. Kf3 {[%clk 0:00:20.2]} 24... Qh1+ {[%clk 0:00:54.7]} 25. Kf4 {[%clk
0:00:20.3]} 25... Qc1+ {[%clk 0:00:55.1]} 26. Ne3 {[%clk 0:00:19.3]} 26... Rxe3
{[%clk 0:00:42.1]} 27. Qg7+ {[%clk 0:00:19.2]} 27... Ke7 {[%clk 0:00:42.5]} 28.
Qxf7+ {[%clk 0:00:18.4]} 28... Kd6 {[%clk 0:00:40]} 29. Qd5+ {[%clk 0:00:17]}
29... Ke7 {[%clk 0:00:40.3]} 30. Qf7+ {[%clk 0:00:16]} 30... Kd6 {[%clk
0:00:39.8]} 31. Qd5+ {[%clk 0:00:16]} 31... Ke7 {[%clk 0:00:39.1]} 32. Qf7+
{[%clk 0:00:15.7]} 1/2-1/2

[Event "*** Titled Tuesday Blitz"]
[Site "Chess.com"]
[Date "2020.05.19"]
[Round "9"]
[White "Crazy_girl99"]
[Black "wild_cat99"]
[Result "0-1"]
[WhiteElo "2429"]
[BlackElo "2566"]
[TimeControl "180+1"]
[EndTime "13:46:01 PDT"]
[Termination "wild_cat99 won by checkmate"]

1. Nf3 {[%clk 0:03:00.9]} 1... Nf6 {[%clk 0:02:59.5]} 2. g3 {[%clk 0:03:00.2]}
2... g6 {[%clk 0:02:59.5]} 3. Bg2 {[%clk 0:03:00.8]} 3... Bg7 {[%clk 0:03:00.4]}
4. O-O {[%clk 0:03:00.5]} 4... O-O {[%clk 0:03:01]} 5. d4 {[%clk 0:03:01.1]}
5... d5 {[%clk 0:03:01.3]} 6. c4 {[%clk 0:03:01.1]} 6... dxc4 {[%clk 0:03:02.2]}
7. Na3 {[%clk 0:03:00.7]} 7... Na6 {[%clk 0:03:02.5]} 8. Nxc4 {[%clk 0:03:00]}
8... c5 {[%clk 0:03:02.9]} 9. dxc5 {[%clk 0:02:46.3]} 9... Be6 {[%clk
0:03:01.9]} 10. Nce5 {[%clk 0:02:42.8]} 10... Nxc5 {[%clk 0:02:58.7]} 11. Be3
{[%clk 0:02:42.6]} 11... Nfe4 {[%clk 0:02:52.8]} 12. Rc1 {[%clk 0:02:37.5]}
12... Rc8 {[%clk 0:02:47.9]} 13. Bd4 {[%clk 0:02:12.2]} 13... Bxa2 {[%clk
0:02:37.5]} 14. b4 {[%clk 0:01:58]} 14... Nb3 {[%clk 0:02:35.7]} 15. Rxc8 {[%clk
0:01:55.9]} 15... Qxc8 {[%clk 0:02:36.6]} 16. e3 {[%clk 0:01:15.7]} 16... Rd8
{[%clk 0:02:30.9]} 17. Qe2 {[%clk 0:01:12.7]} 17... Nxd4 {[%clk 0:02:22.4]} 18.
exd4 {[%clk 0:01:12.4]} 18... Nc3 {[%clk 0:02:22.2]} 19. Qb2 {[%clk 0:01:09.6]}
19... Bd5 {[%clk 0:02:10.9]} 20. Re1 {[%clk 0:01:01.3]} 20... f6 {[%clk
0:02:03]} 21. Nd3 {[%clk 0:00:59.9]} 21... Qc7 {[%clk 0:02:02.5]} 22. Nc5 {[%clk
0:00:53.8]} 22... Nb5 {[%clk 0:01:58.4]} 23. Qe2 {[%clk 0:00:17.4]} 23... Bxf3
{[%clk 0:01:52.7]} 24. Qxb5 {[%clk 0:00:17.1]} 24... Bxg2 {[%clk 0:01:49.9]} 25.
Kxg2 {[%clk 0:00:18]} 25... b6 {[%clk 0:01:49.5]} 26. Ne6 {[%clk 0:00:17.6]}
26... Qb7+ {[%clk 0:01:47.4]} 27. Kg1 {[%clk 0:00:18.2]} 27... Rc8 {[%clk
0:01:46.8]} 28. d5 {[%clk 0:00:16.8]} 28... Bh6 {[%clk 0:01:41.5]} 29. Qe2
{[%clk 0:00:16.2]} 29... Qxd5 {[%clk 0:01:40]} 30. f4 {[%clk 0:00:13]} 30... a5
{[%clk 0:01:36.6]} 31. bxa5 {[%clk 0:00:12.7]} 31... bxa5 {[%clk 0:01:37.5]} 32.
Qa6 {[%clk 0:00:12.6]} 32... Ra8 {[%clk 0:01:32.1]} 33. Qb6 {[%clk 0:00:11.9]}
33... Qd2 {[%clk 0:01:20.9]} 34. Kf1 {[%clk 0:00:09.7]} 34... Qxh2 {[%clk
0:01:18.4]} 35. Nc7 {[%clk 0:00:09.5]} 35... Rd8 {[%clk 0:01:13.9]} 36. Qe6+
{[%clk 0:00:09.1]} 36... Kh8 {[%clk 0:01:10.9]} 37. Qxe7 {[%clk 0:00:08.4]}
37... Qh3+ {[%clk 0:01:10.5]} 38. Kf2 {[%clk 0:00:08.6]} 38... Rd2+ {[%clk
0:01:06.4]} 39. Ke3 {[%clk 0:00:08.5]} 39... Qd7 {[%clk 0:01:03.5]} 40. Qxf6+
{[%clk 0:00:07]} 40... Bg7 {[%clk 0:01:01.3]} 41. Qe6 {[%clk 0:00:07.5]} 41...
Qd3# {[%clk 0:00:59.7]} 0-1

[Event "*** Titled Tuesday Blitz"]
[Site "Chess.com"]
[Date "2020.05.19"]
[Round "9"]
[White "Susal_De_Silva"]
[Black "AnnaChessLook"]
[Result "1-0"]
[WhiteElo "2383"]
[BlackElo "2224"]
[TimeControl "180+1"]
[EndTime "13:46:05 PDT"]
[Termination "Susal_De_Silva won by resignation"]

1. e4 {[%clk 0:03:00.9]} 1... c5 {[%clk 0:02:55.7]} 2. Nf3 {[%clk 0:03:01]} 2...
Nc6 {[%clk 0:02:56]} 3. Bb5 {[%clk 0:03:01]} 3... g6 {[%clk 0:02:55.3]} 4. Bxc6
{[%clk 0:03:00.6]} 4... dxc6 {[%clk 0:02:56.2]} 5. d3 {[%clk 0:03:01]} 5... Bg7
{[%clk 0:02:56.1]} 6. h3 {[%clk 0:03:01.7]} 6... Nf6 {[%clk 0:02:55.3]} 7. O-O
{[%clk 0:03:01.8]} 7... Nd7 {[%clk 0:02:55.4]} 8. Nc3 {[%clk 0:03:02.5]} 8... e5
{[%clk 0:02:55.1]} 9. Be3 {[%clk 0:03:02.8]} 9... b6 {[%clk 0:02:55]} 10. a4
{[%clk 0:03:03.5]} 10... a5 {[%clk 0:02:54.7]} 11. Qd2 {[%clk 0:03:01.3]} 11...
h6 {[%clk 0:02:54.9]} 12. Ne2 {[%clk 0:02:54.3]} 12... Nf8 {[%clk 0:02:54.6]}
13. Ng3 {[%clk 0:02:54.4]} 13... Ne6 {[%clk 0:02:54.1]} 14. c3 {[%clk
0:02:54.1]} 14... g5 {[%clk 0:02:45.1]} 15. Nf5 {[%clk 0:02:51.3]} 15... O-O
{[%clk 0:02:45.2]} 16. h4 {[%clk 0:02:45.4]} 16... Nf4 {[%clk 0:02:42.4]} 17.
hxg5 {[%clk 0:02:36.8]} 17... hxg5 {[%clk 0:02:43.3]} 18. Nxg7 {[%clk 0:02:32]}
18... Kxg7 {[%clk 0:02:38.9]} 19. Nxe5 {[%clk 0:02:32.2]} 19... Qf6 {[%clk
0:02:27.7]} 20. d4 {[%clk 0:02:28.2]} 20... Rh8 {[%clk 0:02:23.7]} 21. f3 {[%clk
0:02:18.1]} 21... Qh6 {[%clk 0:02:11.8]} 22. Bxf4 {[%clk 0:02:12.9]} 22... gxf4
{[%clk 0:02:12.7]} 23. Kf2 {[%clk 0:02:12.8]} 23... Qg5 {[%clk 0:01:49.6]} 24.
Rg1 {[%clk 0:01:25.7]} 24... Qg3+ {[%clk 0:01:31]} 25. Ke2 {[%clk 0:01:24.6]}
25... Ba6+ {[%clk 0:01:26.8]} 26. c4 {[%clk 0:01:24.4]} 26... Rad8 {[%clk
0:01:21.9]} 27. Nxc6 {[%clk 0:01:16.9]} 27... Bxc4+ {[%clk 0:01:20.5]} 28. Kd1
{[%clk 0:01:16.5]} 28... Bb3+ {[%clk 0:01:02.2]} 29. Kc1 {[%clk 0:01:15.6]}
29... cxd4 {[%clk 0:00:49.5]} 30. Nxd8 {[%clk 0:01:15.3]} 30... Rxd8 {[%clk
0:00:50.4]} 31. Ra3 {[%clk 0:01:14.2]} 31... Rc8+ {[%clk 0:00:36.8]} 32. Kb1
{[%clk 0:01:12.7]} 32... Bc2+ {[%clk 0:00:37.1]} 33. Ka1 {[%clk 0:01:09.9]}
33... d3 {[%clk 0:00:34.6]} 34. Rc3 {[%clk 0:01:03.2]} 34... Rd8 {[%clk
0:00:20.4]} 35. Rc7 {[%clk 0:00:59.1]} 35... Qh2 {[%clk 0:00:17.7]} 36. Rc1
{[%clk 0:00:56.8]} 36... Rd4 {[%clk 0:00:17.8]} 37. Qc3 {[%clk 0:00:52.8]} 1-0

[Event "*** Titled Tuesday Blitz"]
[Site "Chess.com"]
[Date "2020.05.19"]
[Round "9"]
[White "Efremov_Vlad"]
[Black "Perecke"]
[Result "0-1"]
[WhiteElo "2134"]
[BlackElo "2258"]
[TimeControl "180+1"]
[EndTime "13:46:05 PDT"]
[Termination "Perecke won on time"]

1. Nf3 {[%clk 0:03:00.9]} 1... d5 {[%clk 0:02:59.4]} 2. d4 {[%clk 0:02:59.5]}
2... Nf6 {[%clk 0:02:51.5]} 3. c4 {[%clk 0:02:59.5]} 3... e6 {[%clk 0:02:50.7]}
4. Nc3 {[%clk 0:02:58.7]} 4... Be7 {[%clk 0:02:50.2]} 5. Bf4 {[%clk 0:02:58.3]}
5... O-O {[%clk 0:02:50.1]} 6. e3 {[%clk 0:02:58.3]} 6... Nbd7 {[%clk
0:02:50.4]} 7. c5 {[%clk 0:02:57.9]} 7... Nh5 {[%clk 0:02:50.3]} 8. Bd3 {[%clk
0:02:57.3]} 8... Nxf4 {[%clk 0:02:50.2]} 9. exf4 {[%clk 0:02:58.2]} 9... Re8
{[%clk 0:02:49.8]} 10. O-O {[%clk 0:02:52.3]} 10... f6 {[%clk 0:02:49.9]} 11.
Re1 {[%clk 0:02:42.7]} 11... Nf8 {[%clk 0:02:47.2]} 12. Qc2 {[%clk 0:02:37]}
12... c6 {[%clk 0:02:42]} 13. b4 {[%clk 0:02:29]} 13... Qc7 {[%clk 0:02:41.4]}
14. f5 {[%clk 0:02:17.2]} 14... exf5 {[%clk 0:02:37.3]} 15. Bxf5 {[%clk
0:02:17]} 15... Bxf5 {[%clk 0:02:38.2]} 16. Qxf5 {[%clk 0:02:16.6]} 16... Ng6
{[%clk 0:02:33.4]} 17. Nxd5 {[%clk 0:01:38.3]} 17... cxd5 {[%clk 0:02:27.7]} 18.
Qxd5+ {[%clk 0:01:38.3]} 18... Kh8 {[%clk 0:02:21.6]} 19. Qb3 {[%clk 0:01:37.7]}
19... Bf8 {[%clk 0:02:17.2]} 20. d5 {[%clk 0:01:36.3]} 20... b6 {[%clk
0:02:15.5]} 21. d6 {[%clk 0:01:35.7]} 21... Qd7 {[%clk 0:02:13.6]} 22. Nd4
{[%clk 0:01:23.9]} 22... Ne5 {[%clk 0:02:01.8]} 23. Qd5 {[%clk 0:01:17.1]} 23...
a5 {[%clk 0:01:38.4]} 24. a3 {[%clk 0:01:02.3]} 24... axb4 {[%clk 0:01:37.2]}
25. axb4 {[%clk 0:01:02.6]} 25... Rxa1 {[%clk 0:01:37]} 26. Rxa1 {[%clk
0:01:01.4]} 26... Nd3 {[%clk 0:01:36.4]} 27. Qc4 {[%clk 0:00:30.6]} 27... Nf4
{[%clk 0:01:19.9]} 28. h3 {[%clk 0:00:17.3]} 28... h6 {[%clk 0:01:07.3]} 29. Nb5
{[%clk 0:00:16]} 29... Nxh3+ {[%clk 0:00:47.8]} 30. gxh3 {[%clk 0:00:13.6]}
30... Qxh3 {[%clk 0:00:48.7]} 31. Ra3 {[%clk 0:00:05.2]} 31... Re1+ {[%clk
0:00:45.6]} 0-1

[Event "*** Titled Tuesday Blitz"]
[Site "Chess.com"]
[Date "2020.05.19"]
[Round "9"]
[White "Guenplen"]
[Black "IwkooO"]
[Result "1-0"]
[WhiteElo "2955"]
[BlackElo "2551"]
[TimeControl "180+1"]
[EndTime "13:46:11 PDT"]
[Termination "Guenplen won by resignation"]

1. d4 {[%clk 0:03:00.9]} 1... Nf6 {[%clk 0:03:00]} 2. Bf4 {[%clk 0:03:00.8]}
2... g6 {[%clk 0:02:58.8]} 3. Nc3 {[%clk 0:03:00.5]} 3... d5 {[%clk 0:02:52.9]}
4. e3 {[%clk 0:03:00.6]} 4... Bg7 {[%clk 0:02:53]} 5. h4 {[%clk 0:03:00.9]} 5...
h6 {[%clk 0:02:45.8]} 6. Nf3 {[%clk 0:03:00.6]} 6... Bg4 {[%clk 0:02:44.2]} 7.
Be2 {[%clk 0:03:00.4]} 7... Nbd7 {[%clk 0:02:41.5]} 8. Nb5 {[%clk 0:02:57.6]}
8... O-O {[%clk 0:02:22.1]} 9. Bxc7 {[%clk 0:02:44.2]} 9... Qc8 {[%clk
0:02:20.2]} 10. Bh2 {[%clk 0:02:43]} 10... a6 {[%clk 0:02:17.5]} 11. Nc3 {[%clk
0:02:40.5]} 11... b5 {[%clk 0:02:18]} 12. a3 {[%clk 0:02:39.3]} 12... Qc6 {[%clk
0:02:11.4]} 13. Ne5 {[%clk 0:02:38.6]} 13... Nxe5 {[%clk 0:02:09.9]} 14. Bxe5
{[%clk 0:02:29.2]} 14... Bxe2 {[%clk 0:02:05.5]} 15. Qxe2 {[%clk 0:02:30.1]}
15... Rfc8 {[%clk 0:02:02.3]} 16. Bxf6 {[%clk 0:02:17.8]} 16... Bxf6 {[%clk
0:02:01.8]} 17. Qf3 {[%clk 0:02:16.9]} 17... Rd8 {[%clk 0:01:55.8]} 18. Qf4
{[%clk 0:02:06.7]} 18... Bg7 {[%clk 0:01:46.1]} 19. O-O {[%clk 0:02:03.6]} 19...
a5 {[%clk 0:01:43.9]} 20. Rac1 {[%clk 0:01:45.8]} 20... b4 {[%clk 0:01:40.7]}
21. Nb1 {[%clk 0:01:45.9]} 21... Rab8 {[%clk 0:01:06.3]} 22. axb4 {[%clk
0:01:37.7]} 22... axb4 {[%clk 0:01:04.3]} 23. Nd2 {[%clk 0:01:37]} 23... Ra8
{[%clk 0:01:00]} 24. c4 {[%clk 0:01:28.9]} 24... bxc3 {[%clk 0:00:48.3]} 25.
Rxc3 {[%clk 0:01:28.1]} 25... Qb6 {[%clk 0:00:48]} 26. b3 {[%clk 0:01:19.3]}
26... Rdc8 {[%clk 0:00:41.9]} 27. Rfc1 {[%clk 0:01:13.9]} 27... Rxc3 {[%clk
0:00:33.3]} 28. Rxc3 {[%clk 0:01:14.8]} 28... Qb4 {[%clk 0:00:29.9]} 29. Qc7
{[%clk 0:01:12.9]} 29... Bf8 {[%clk 0:00:25.6]} 30. Nf3 {[%clk 0:01:05.6]} 30...
Ra1+ {[%clk 0:00:19.3]} 31. Kh2 {[%clk 0:01:05.2]} 31... Qb5 {[%clk 0:00:19]}
32. Qd8 {[%clk 0:00:54.2]} 32... Qb4 {[%clk 0:00:10]} 33. Rc8 {[%clk 0:00:50.6]}
33... e6 {[%clk 0:00:10.5]} 34. Ne5 {[%clk 0:00:48.8]} 34... Ra7 {[%clk
0:00:08.5]} 35. Nc6 {[%clk 0:00:44.4]} 1-0

[Event "*** Titled Tuesday Blitz"]
[Site "Chess.com"]
[Date "2020.05.19"]
[Round "9"]
[White "Manukyan_Artak"]
[Black "oykuince"]
[Result "1-0"]
[WhiteElo "2313"]
[BlackElo "2019"]
[TimeControl "180+1"]
[EndTime "13:46:11 PDT"]
[Termination "Manukyan_Artak won by resignation"]

1. e4 {[%clk 0:02:53.4]} 1... c5 {[%clk 0:02:59.7]} 2. Nf3 {[%clk 0:02:52.8]}
2... e6 {[%clk 0:02:59.7]} 3. c3 {[%clk 0:02:52.5]} 3... d5 {[%clk 0:02:59.2]}
4. e5 {[%clk 0:02:51.4]} 4... d4 {[%clk 0:02:58.1]} 5. cxd4 {[%clk 0:02:50.2]}
5... cxd4 {[%clk 0:02:59]} 6. Bb5+ {[%clk 0:02:48.5]} 6... Nc6 {[%clk
0:02:58.9]} 7. Bxc6+ {[%clk 0:02:46.9]} 7... bxc6 {[%clk 0:02:57.9]} 8. Qa4
{[%clk 0:02:47.8]} 8... Bd7 {[%clk 0:02:36]} 9. Qxd4 {[%clk 0:02:40]} 9... c5
{[%clk 0:02:32.8]} 10. Qe3 {[%clk 0:02:35.1]} 10... Nh6 {[%clk 0:02:30.2]} 11.
O-O {[%clk 0:02:32.7]} 11... Nf5 {[%clk 0:02:27.6]} 12. Qf4 {[%clk 0:02:28.7]}
12... g5 {[%clk 0:02:18.4]} 13. Qxg5 {[%clk 0:02:24.7]} 13... Be7 {[%clk
0:02:14.7]} 14. Qf4 {[%clk 0:02:21.6]} 14... Rg8 {[%clk 0:02:13.9]} 15. Nc3
{[%clk 0:02:15.5]} 15... Bc6 {[%clk 0:02:12]} 16. Kh1 {[%clk 0:01:59.1]} 16...
Nd4 {[%clk 0:01:53.2]} 17. Ne4 {[%clk 0:01:54.5]} 17... Nxf3 {[%clk 0:01:24]}
18. Qxf3 {[%clk 0:01:52.4]} 18... Qd5 {[%clk 0:01:24.1]} 19. d3 {[%clk
0:01:52.1]} 19... Rd8 {[%clk 0:01:12]} 20. Bf4 {[%clk 0:01:26]} 20... h5 {[%clk
0:00:36.1]} 21. Rad1 {[%clk 0:01:17.5]} 21... c4 {[%clk 0:00:23.7]} 22. Rc1
{[%clk 0:00:40.6]} 22... cxd3 {[%clk 0:00:19.3]} 23. Rxc6 {[%clk 0:00:40.5]}
23... Qxc6 {[%clk 0:00:19.5]} 24. Nf6+ {[%clk 0:00:40.4]} 24... Bxf6 {[%clk
0:00:19]} 25. Qxc6+ {[%clk 0:00:40.2]} 25... Ke7 {[%clk 0:00:19.6]} 26. exf6+
{[%clk 0:00:40.1]} 26... Kxf6 {[%clk 0:00:20.2]} 27. h4 {[%clk 0:00:37]} 27...
d2 {[%clk 0:00:19.9]} 28. Bg5+ {[%clk 0:00:35.6]} 28... Kg6 {[%clk 0:00:19.1]}
29. Bxd8 {[%clk 0:00:35]} 29... Rxd8 {[%clk 0:00:20]} 30. Rd1 {[%clk 0:00:34.9]}
30... Rd4 {[%clk 0:00:20.1]} 31. Qc2+ {[%clk 0:00:34.3]} 31... Kf6 {[%clk
0:00:20.5]} 32. Rxd2 {[%clk 0:00:30.6]} 32... Rxh4+ {[%clk 0:00:20.9]} 33. Kg1
{[%clk 0:00:30.8]} 1-0